lending/lending_fUSD_20250706
["ID","MTS","AMOUNT","RATE_DAILY","PERIOD"]
[369985187,1751811065192,-460.0,0.00019452,2]
[369985188,1751811065202,-460.0,0.00019452,2]
[369985189,1751811065211,-866.96,0.00019452,2]
[369985190,1751811065221,-475.46107279,0.00019452,2]
[369985191,1751811065231,-460.0,0.00019452,2]
[369985192,1751811065244,-460.0,0.00019452,2]
[369985193,1751811065254,-607.62,0.00019452,2]
[369985194,1751811065264,-1885.46,0.00019452,2]
[369985195,1751811065274,-1000.0,0.00019452,2]
[369985196,1751811065284,-460.0,0.00019452,2]
[369985197,1751811065294,-642.98,0.00019452,2]
[369985198,1751811065303,-587.37,0.00019452,2]
[369985199,1751811065312,-467.12658923,0.00019452,2]
[369985200,1751811065322,-460.0,0.00019452,2]
[369985201,1751811065332,-885.7,0.00019452,2]
[369985202,1751811065341,-855.79,0.00019452,2]
[369985203,1751811065350,-217.13732778,0.00019452,2]
[369985204,1751811065360,-460.0,0.00019452,2]
[369985205,1751811065369,-626.56,0.00019452,2]
[369985206,1751811065379,-476.08,0.00019452,2]
[369985207,1751811065387,-460.0,0.00019452,2]
[369985208,1751811065397,-460.0,0.00019452,2]
[369985209,1751811065406,-460.0,0.00019452,2]
[369985210,1751811065415,-896.94,0.00019452,2]
[369985211,1751811065423,-460.0,0.00019452,2]
[369985212,1751811065433,-460.0,0.00019452,2]
[369985213,1751811065444,-1245.7,0.00019452,2]
[369985214,1751811065455,-641.24,0.00019452,2]
[369985215,1751811065466,-1650.45,0.00019452,2]
[369985216,1751811065475,-498.35,0.00019452,2]
[369985217,1751811065486,-460.0,0.00019452,2]
[369985218,1751811065497,-481.73,0.00019452,2]
[369985219,1751811065506,-460.0,0.00019452,2]
[369985220,1751811065516,-460.0,0.00019452,2]
[369985221,1751811065525,-460.0,0.00019452,2]
[369985222,1751811065535,-460.0,0.00019452,2]
[369985223,1751811065544,-539.91,0.00019452,2]
[369985224,1751811065553,-1339.41,0.00019452,2]
[369985225,1751811065563,-460.0,0.00019452,2]
[369985226,1751811065572,-460.0,0.00019452,2]
[369985227,1751811065582,-460.0,0.00019452,2]
[369985228,1751811065594,-501.48,0.00019452,2]
[369985229,1751811065603,-733.54,0.00019452,2]
[369985230,1751811065614,-1052.83,0.00019452,2]
[369985231,1751811065624,-460.0,0.00019452,2]
[369985232,1751811065635,-677.99,0.00019452,2]
[369985233,1751811065644,-1279.67,0.00019452,2]
[369985234,1751811065653,-1152.23,0.00019452,2]
[369985235,1751811065664,-460.0,0.00019452,2]
[369985236,1751811065673,-1428.58,0.00019452,2]
[369985237,1751811065683,-460.0,0.00019452,2]
[369985238,1751811065693,-460.0,0.00019452,2]
[369985239,1751811065702,-704.22,0.00019452,2]
[369985240,1751811065711,-460.0,0.00019452,2]
[369985241,1751811065720,-691.43,0.00019452,2]
[369985242,1751811065729,-460.0,0.00019452,2]
[369985243,1751811065738,-460.0,0.00019452,2]
[369985244,1751811065748,-886.97,0.00019452,2]
[369985245,1751811065757,-1482.43,0.00019452,2]
[369985246,1751811065767,-527.71,0.00019452,2]
[369985247,1751811065776,-460.0,0.00019452,2]
[369985248,1751811065785,-3600.83,0.00019452,2]
[369985249,1751811065795,-531.78,0.00019452,2]
[369985250,1751811065804,-462.83,0.00019452,2]
[369985251,1751811065814,-460.0,0.00019452,2]
[369985252,1751811065823,-4904.09,0.00019452,2]
[369985253,1751811065832,-460.0,0.00019452,2]
[369985254,1751811065841,-1500.0,0.00019452,2]
[369985255,1751811065850,-782.53,0.00019452,2]
[369985256,1751811065861,-737.77,0.00019452,2]
[369985257,1751811065870,-460.0,0.00019452,2]
[369985258,1751811065880,-460.0,0.00019452,2]
[369985259,1751811065889,-460.0,0.00019452,2]
[369985260,1751811065899,-460.0,0.00019452,2]
[369985261,1751811065909,-770.86,0.00019452,2]
[369985262,1751811065918,-727.36,0.00019452,2]
[369985263,1751811065929,-503.17,0.00019452,2]
[369985264,1751811065939,-1531.34,0.00019452,2]
[369985265,1751811065949,-617.02,0.00019452,2]
[369985266,1751811065958,-460.0,0.00019452,2]
[369985267,1751811065968,-460.0,0.00019452,2]
[369985268,1751811065978,-460.0,0.00019452,2]
[369985269,1751811065988,-460.0,0.00019452,2]
[369985270,1751811065999,-460.0,0.00019452,2]
[369985271,1751811066009,-656.55,0.00019452,2]
[369985272,1751811066018,-460.0,0.00019452,2]
[369985273,1751811066027,-1374.2,0.00019452,2]
[369985274,1751811066037,-636.49,0.00019452,2]
[369985275,1751811066046,-529.95,0.00019452,2]
[369985276,1751811066057,-460.0,0.00019452,2]
[369985277,1751811066068,-789.01,0.00019452,2]
[369985278,1751811066078,-460.0,0.00019452,2]
[369985279,1751811066087,-460.0,0.00019452,2]
[369985280,1751811066097,-1415.69,0.00019452,2]
[369985281,1751811066107,-669.83,0.00019452,2]
[369985282,1751811066117,-460.0,0.00019452,2]
[369985283,1751811066126,-460.0,0.00019452,2]
[369985284,1751811066136,-460.0,0.00019452,2]
[369985285,1751811066146,-460.0,0.00019452,2]
[369985286,1751811066155,-734.1,0.00019452,2]
[369985287,1751811066166,-1132.23,0.00019452,2]
[369985288,1751811066176,-460.0,0.00019452,2]
[369985289,1751811066187,-725.16,0.00019452,2]
[369985290,1751811066196,-460.0,0.00019452,2]
[369985291,1751811066206,-737.5,0.00019452,2]
[369985292,1751811066215,-460.0,0.00019452,2]
[369985293,1751811066226,-1308.94,0.00019452,2]
[369985294,1751811066236,-520.0,0.00019452,2]
[369985295,1751811066246,-460.0,0.00019452,2]
[369985296,1751811066257,-707.05,0.00019452,2]
[369985297,1751811066268,-460.0,0.00019452,2]
[369985298,1751811066280,-460.0,0.00019452,2]
[369985299,1751811066290,-460.0,0.00019452,2]
[369985300,1751811066302,-718.48,0.00019452,2]
[369985301,1751811066311,-460.0,0.00019452,2]
[369985302,1751811066322,-640.8,0.00019452,2]
[369985303,1751811066331,-785.85,0.00019452,2]
[369985304,1751811066341,-2216.8,0.00019452,2]
[369985305,1751811066352,-620.68,0.00019452,2]
[369985306,1751811066361,-460.0,0.00019452,2]
[369985307,1751811066371,-713.7,0.00019452,2]
[369985308,1751811066381,-999.79,0.00019452,2]
[369985309,1751811066390,-460.0,0.00019452,2]
[369985310,1751811066400,-862.25,0.00019452,2]
[369985311,1751811066409,-639.31,0.00019452,2]
[369985312,1751811066419,-460.0,0.00019452,2]
[369985313,1751811066429,-460.0,0.00019452,2]
[369985314,1751811066439,-460.0,0.00019452,2]
[369985315,1751811066450,-460.0,0.00019452,2]
[369985316,1751811066460,-845.47,0.00019452,2]
[369985317,1751811066471,-460.0,0.00019452,2]
[369985318,1751811066481,-460.0,0.00019452,2]
[369985319,1751811066492,-59057.03,0.00019452,2]
[369985320,1751811066502,-460.0,0.00019452,2]
[369985321,1751811066513,-759.69,0.00019452,2]
[369985322,1751811066522,-814.04,0.00019452,2]
[369985323,1751811066533,-460.0,0.00019452,2]
[369985324,1751811066543,-460.0,0.00019452,2]
[369985325,1751811066552,-576.84,0.00019452,2]
[369985326,1751811066562,-585.92,0.00019452,2]
[369985327,1751811066572,-662.19,0.00019452,2]
[369985328,1751811066582,-791.04,0.00019452,2]
[369985329,1751811066595,-665.24,0.00019452,2]
[369985330,1751811066607,-881.79,0.00019452,2]
[369985331,1751811066618,-460.0,0.00019452,2]
[369985332,1751811066628,-460.0,0.00019452,2]
[369985333,1751811066638,-460.0,0.00019452,2]
[369985334,1751811066649,-460.0,0.00019452,2]
[369985335,1751811066659,-739.05,0.00019452,2]
[369985336,1751811066671,-460.0,0.00019452,2]
[369985337,1751811066682,-670.52,0.00019452,2]
[369985338,1751811066692,-587.21,0.00019452,2]
[369985339,1751811066703,-1305.39,0.00019452,2]
[369985340,1751811066713,-460.0,0.00019452,2]
[369985341,1751811066724,-460.0,0.00019452,2]
[369985342,1751811066736,-550.28,0.00019452,2]
[369985343,1751811066746,-1848.59,0.00019452,2]
[369985344,1751811066756,-534.3,0.00019452,2]
[369985345,1751811066766,-475.96,0.00019452,2]
[369985346,1751811066777,-895.7,0.00019452,2]
[369985347,1751811066787,-610.29,0.00019452,2]
[369985348,1751811066797,-604.7,0.00019452,2]
[369985349,1751811066808,-460.0,0.00019452,2]
[369985350,1751811066818,-509.92,0.00019452,2]
[369985351,1751811066829,-8968.53,0.00019452,2]
[369985352,1751811066839,-2573.97,0.00019452,2]
[369985353,1751811066848,-460.0,0.00019452,2]
[369985354,1751811066859,-460.0,0.00019452,2]
[369985355,1751811066869,-460.0,0.00019452,2]
[369985356,1751811066879,-1334.44,0.00019452,2]
[369985357,1751811066888,-903.9,0.00019452,2]
[369985358,1751811066898,-460.0,0.00019452,2]
[369985359,1751811066908,-907.31,0.00019452,2]
[369985360,1751811066917,-355.51081822,0.00019452,2]
[369985361,1751811066927,-460.0,0.00019452,2]
[369985362,1751811066936,-432.4027635,0.00019452,2]
[369985363,1751811066946,-460.0,0.00019452,2]
[369985364,1751811066956,-219.30804739,0.00019452,2]
[369985365,1751811067629,-654.41195261,0.00019452,2]
[369985366,1751811067639,-63.0591301,0.00019452,2]
[369985367,1751811067659,-396.9408699,0.00019452,2]
[369985368,1751811067670,-245.84618669,0.00019452,2]
[369985369,1751811067683,-268.97381331,0.00019452,2]
[369985370,1751811067692,-306.31400677,0.00019452,2]
[369985568,1751811166022,7500.0,0.0003013,120]
[369985575,1751811188689,152.0,0.00029,120]
[369985595,1751811226668,7500.0,0.0003013,120]
[369985605,1751811256881,7500.0,0.0003013,120]
[369985660,1751811339038,10000.0,0.00030137,120]
[369985683,1751811389576,10000.0,0.00030137,120]
[369985686,1751811399768,156.69,0.00013699,2]
[369985689,1751811402430,180.0,0.00029,120]
[369985782,1751811625368,10000.0,0.00030137,120]
[369985859,1751812231894,-500.0,0.00017064,2]
[369985860,1751812231908,-151.0,0.00017543,2]
[369985861,1751812231919,-1511.15,0.00017801,2]
[369985867,1751812231985,-3833.99811732,0.00017801,2]
[369985868,1751812231997,-1200.0,0.00017992,2]
[369985869,1751812232009,-300.0,0.00017993,2]
[369985870,1751812232020,-300.0,0.00017993,2]
[369985871,1751812232032,-1867.78230632,0.00017994,2]
[369985872,1751812232045,-283.27719594,0.00017994,2]
[369985873,1751812232059,-432.305,0.00017994,2]
[369985874,1751812232073,-1151.42549774,0.00017994,2]
[369985875,1751812232084,-175.0,0.000181,2]
[369985876,1751812232096,-500.0,0.0001811,2]
[369985877,1751812232108,-1391.86,0.0001817,2]
[369985878,1751812232119,-37.8531201,0.0001817,2]
[369985879,1751812232158,-289.52420002,0.0001817,2]
[369985880,1751812232191,-300.0,0.0001817,2]
[369985881,1751812232205,-38.62267988,0.0001817,2]
[369985882,1751812232217,-1222.37732012,0.0001817,2]
[369985883,1751812232230,-1707.37267988,0.0001817,2]
[369985884,1751812232241,-4536.53408665,0.000182,2]
[369985885,1751812232252,-417.9,0.00018224,2]
[369985886,1751812232263,-1000.0,0.0001824,2]
[369985887,1751812232274,-212.88,0.00018329,2]
[369985888,1751812232286,-526.63,0.000185,2]
[369985889,1751812232297,-526.63,0.000185,2]
[369985890,1751812232308,-526.63,0.000185,2]
[369985891,1751812232319,-526.63,0.000185,2]
[369985892,1751812232331,-526.63,0.000185,2]
[369985893,1751812232342,-207.4,0.00018589,2]
[369985895,1751812232354,-163.98073845,0.0001859,2]
[369985897,1751812232367,-8.01926155,0.0001859,2]
[369985899,1751812232380,-254.23425958,0.0001863,2]
[369985900,1751812232393,-23.10574042,0.0001863,2]
[369985902,1751812232404,-684.3315766,0.000188,6]
[369986107,1751812238109,-715.6684234,0.000188,6]
[369986108,1751812238118,-2900.0,0.000189,6]
[369986109,1751812238128,-1545.30614601,0.000189,2]
[369986110,1751812238137,-881.0,0.00019,2]
[369986111,1751812238148,-377.0,0.00019,2]
[369986112,1751812238157,-212.88,0.00019016,2]
[369986113,1751812238167,-255.0,0.00019052,2]
[369986114,1751812238177,-264.66,0.00019052,2]
[369986115,1751812238186,-168.0,0.00019052,2]
[369986116,1751812238195,-375.073,0.00019056,2]
[369986117,1751812238205,-754.0,0.00019056,2]
[369986118,1751812238214,-858.0,0.00019056,2]
[369986119,1751812238223,-4108.0,0.00019056,2]
[369986120,1751812238232,-500.0,0.00019067,2]
[369986121,1751812238241,-500.0,0.00019067,2]
[369986122,1751812238251,-500.0,0.00019067,2]
[369986123,1751812238260,-300.0,0.00019067,2]
[369986124,1751812238270,-500.0,0.00019067,2]
[369986125,1751812238279,-151.0,0.00019067,2]
[369986126,1751812238289,-151.0,0.00019067,2]
[369986127,1751812238299,-151.0,0.00019067,2]
[369986128,1751812238308,-151.0,0.00019067,2]
[369986129,1751812238317,-151.0,0.00019067,2]
[369986130,1751812238327,-151.0,0.00019067,2]
[369986131,1751812238336,-151.0,0.00019067,2]
[369986132,1751812238345,-151.0,0.00019067,2]
[369986134,1751812238354,-151.0,0.00019067,2]
[369986137,1751812238364,-151.0,0.00019067,2]
[369986139,1751812238373,-238.64791854,0.00019067,2]
[369986140,1751812238383,-168.0,0.0001907,2]
[369986143,1751812238392,-152.843579,0.00019078,2]
[369986144,1751812238402,-1155.23026222,0.00019078,2]
[369986146,1751812238412,-159.7619515,0.00019078,2]
[369986148,1751812238421,-156.03090121,0.00019078,2]
[369986150,1751812238433,-262.64724945,0.00019078,2]
[369986152,1751812238443,-194.6972354,0.00019078,2]
[369986154,1751812238452,-1920.55470315,0.00019078,2]
[369986156,1751812238464,-3079.44529685,0.00019078,2]
[369986158,1751812238474,-1391.86,0.00019079,2]
[369986160,1751812238484,-160.0,0.00019098,2]
[369986162,1751812238493,-1300.0,0.000191,2]
[369986164,1751812238503,-227.0,0.000191,2]
[369986165,1751812238512,-413.37,0.00019152,2]
[369986166,1751812238522,-500.0,0.00019173,2]
[369986167,1751812238531,-500.0,0.00019173,2]
[369986169,1751812238540,-836.76783547,0.00019177,2]
[369986171,1751812238550,-2045.80232696,0.00019177,2]
[369986173,1751812238559,-1000.0,0.00019177,2]
[369986175,1751812238569,-209.58222029,0.00019177,2]
[369986177,1751812238579,-211.45430983,0.00019177,2]
[369986179,1751812238589,-420.30840863,0.00019177,2]
[369986181,1751812238598,-520.0,0.00019178,2]
[369986183,1751812238607,-460.0,0.00019178,2]
[369986185,1751812238617,-460.0,0.00019178,2]
[369986187,1751812238626,-460.0,0.00019178,2]
[369986189,1751812238636,-460.0,0.00019178,2]
[369986191,1751812238645,-463.6312855,0.00019178,2]
[369986193,1751812238655,-460.0,0.00019178,2]
[369986196,1751812238665,-460.0,0.00019178,2]
[369986198,1751812238675,-548.150102,0.00019178,2]
[369986200,1751812238684,-166.743301,0.00019178,2]
[369986202,1751812238693,-167.443183,0.00019178,2]
[369986204,1751812238703,-154.042435,0.00019178,2]
[369986206,1751812238712,-172.625829,0.00019178,2]
[369986208,1751812238722,-1273.11036,0.00019178,2]
[369986210,1751812238731,-505.477454,0.00019178,2]
[369986212,1751812238741,-460.0,0.00019178,2]
[369986214,1751812238750,-460.0,0.00019178,2]
[369986216,1751812238759,-460.0,0.00019178,2]
[369986218,1751812238769,-460.0,0.00019178,2]
[369986220,1751812238778,-460.0,0.00019178,2]
[369986222,1751812238788,-460.0,0.00019178,2]
[369986224,1751812238797,-460.0,0.00019178,2]
[369986226,1751812238807,-460.0,0.00019178,2]
[369986228,1751812238816,-460.0,0.00019178,2]
[369986230,1751812238825,-460.0,0.00019178,2]
[369986232,1751812238834,-460.0,0.00019178,2]
[369986234,1751812238844,-460.0,0.00019178,2]
[369986236,1751812238853,-460.0,0.00019178,2]
[369986238,1751812238862,-460.0,0.00019178,2]
[369986240,1751812238871,-460.0,0.00019178,2]
[369986242,1751812238880,-460.0,0.00019178,2]
[369986244,1751812238890,-460.0,0.00019178,2]
[369986246,1751812238900,-460.0,0.00019178,2]
[369986248,1751812238909,-460.0,0.00019178,2]
[369986250,1751812238918,-460.0,0.00019178,2]
[369986252,1751812238928,-460.0,0.00019178,2]
[369986254,1751812238937,-460.0,0.00019178,2]
[369986256,1751812238946,-460.0,0.00019178,2]
[369986258,1751812238956,-460.0,0.00019178,2]
[369986259,1751812238965,-490.0,0.00019178,2]
[369986261,1751812238974,-460.0,0.00019178,2]
[369986263,1751812238984,-460.0,0.00019178,2]
[369986266,1751812238994,-212.27243054,0.00019178,2]
[369986268,1751812239004,-460.0,0.00019178,2]
[369986270,1751812239014,-460.0,0.00019178,2]
[369986272,1751812239023,-460.0,0.00019178,2]
[369986273,1751812239032,-609.87,0.00019178,2]
[369986275,1751812239041,-311.5700417,0.00019178,2]
[369986276,1751812239051,-460.0,0.00019178,2]
[369986278,1751812239061,-541.41016301,0.00019178,2]
[369986280,1751812239070,-460.0,0.00019178,2]
[369986282,1751812239079,-460.0,0.00019178,2]
[369986301,1751812239285,-163.599383,0.00019178,2]
[369986303,1751812239310,-460.0,0.00019178,2]
[369986305,1751812239320,-460.0,0.00019178,2]
[369986307,1751812239329,-460.0,0.00019178,2]
[369986309,1751812239338,-460.0,0.00019178,2]
[369986311,1751812239348,-460.0,0.00019178,2]
[369986312,1751812239357,-460.0,0.00019178,2]
[369986314,1751812239366,-460.0,0.00019178,2]
[369986316,1751812239375,-460.0,0.00019178,2]
[369986318,1751812239385,-460.0,0.00019178,2]
[369986319,1751812239395,-460.0,0.00019178,2]
[369986321,1751812239405,-460.0,0.00019178,2]
[369986323,1751812239414,-460.0,0.00019178,2]
[369986325,1751812239424,-460.0,0.00019178,2]
[369986327,1751812239438,-460.0,0.00019178,2]
[369986329,1751812239448,-460.0,0.00019178,2]
[369986331,1751812239457,-460.0,0.00019178,2]
[369986333,1751812239466,-460.0,0.00019178,2]
[369986335,1751812239476,-460.0,0.00019178,2]
[369986336,1751812239487,-460.0,0.00019178,2]
[369986338,1751812239496,-460.0,0.00019178,2]
[369986340,1751812239505,-458.53541416,0.00019178,2]
[369986342,1751812239515,-460.0,0.00019178,2]
[369986344,1751812239524,-460.0,0.00019178,2]
[369986345,1751812239534,-222.90855225,0.00019178,2]
[369986347,1751812239543,-490.0,0.00019178,2]
[369986349,1751812239553,-460.0,0.00019178,2]
[369986351,1751812239563,-460.0,0.00019178,2]
[369986352,1751812239573,-460.0,0.00019178,2]
[369986354,1751812239583,-304.29701691,0.00019178,2]
[369986356,1751812239593,-478.76935808,0.00019178,2]
[369986358,1751812239603,-460.0,0.00019178,2]
[369986360,1751812239612,-460.0,0.00019178,2]
[369986361,1751812239622,-521.45120157,0.00019178,2]
[369986363,1751812239632,-512.76,0.00019178,2]
[369986365,1751812239641,-460.0,0.00019178,2]
[369986367,1751812239651,-1000.0,0.00019178,2]
[369986369,1751812239660,-460.0,0.00019178,2]
[369986371,1751812239670,-460.0,0.00019178,2]
[369986373,1751812239679,-460.0,0.00019178,2]
[369986375,1751812239688,-460.0,0.00019178,2]
[369986377,1751812239698,-460.0,0.00019178,2]
[369986378,1751812239707,-460.0,0.00019178,2]
[369986380,1751812239716,-460.0,0.00019178,2]
[369986382,1751812239726,-460.0,0.00019178,2]
[369986384,1751812239735,-460.0,0.00019178,2]
[369986386,1751812239744,-460.0,0.00019178,2]
[369986387,1751812239754,-460.0,0.00019178,2]
[369986389,1751812239763,-467.25995563,0.00019178,2]
[369986391,1751812239772,-460.0,0.00019178,2]
[369986393,1751812239782,-460.0,0.00019178,2]
[369986395,1751812239791,-460.0,0.00019178,2]
[369986397,1751812239801,-460.0,0.00019178,2]
[369986399,1751812239810,-460.0,0.00019178,2]
[369986400,1751812239819,-460.0,0.00019178,2]
[369986402,1751812239829,-460.0,0.00019178,2]
[369986404,1751812239838,-460.0,0.00019178,2]
[369986406,1751812239848,-460.0,0.00019178,2]
[369986409,1751812239857,-460.0,0.00019178,2]
[369986410,1751812239867,-460.0,0.00019178,2]
[369986412,1751812239876,-460.0,0.00019178,2]
[369986414,1751812239886,-460.0,0.00019178,2]
[369986416,1751812239895,-460.0,0.00019178,2]
[369986419,1751812239910,-460.0,0.00019178,2]
[369986421,1751812239920,-367.09140408,0.00019178,2]
[369986423,1751812239929,-460.0,0.00019178,2]
[369986425,1751812239939,-460.0,0.00019178,2]
[369986427,1751812239949,-550.0,0.00019178,2]
[369986430,1751812239958,-466.92874629,0.00019178,2]
[369986432,1751812239967,-476.0,0.00019178,2]
[369986435,1751812239977,-460.0,0.00019178,2]
[369986436,1751812239986,-466.15995246,0.00019178,2]
[369986438,1751812239996,-582.65300341,0.00019178,2]
[369986440,1751812240005,-460.0,0.00019178,2]
[369986442,1751812240015,-460.0,0.00019178,2]
[369986444,1751812240024,-460.0,0.00019178,2]
[369986446,1751812240033,-460.0,0.00019178,2]
[369986447,1751812240043,-460.0,0.00019178,2]
[369986449,1751812240052,-460.0,0.00019178,2]
[369986451,1751812240062,-460.0,0.00019178,2]
[369986453,1751812240071,-552.806262,0.00019178,2]
[369986455,1751812240080,-460.0,0.00019178,2]
[369986457,1751812240089,-300.0,0.00019178,2]
[369986459,1751812240099,-460.0,0.00019178,2]
[369986460,1751812240108,-460.0,0.00019178,2]
[369986462,1751812240118,-460.0,0.00019178,2]
[369986464,1751812240128,-607.59,0.00019178,2]
[369986466,1751812240138,-460.0,0.00019178,2]
[369986468,1751812240149,-476.61715741,0.00019178,2]
[369986470,1751812240158,-460.0,0.00019178,2]
[369986472,1751812240168,-460.0,0.00019178,2]
[369986474,1751812240177,-460.0,0.00019178,2]
[369986475,1751812240187,-460.0,0.00019178,2]
[369986477,1751812240196,-460.0,0.00019178,2]
[369986479,1751812240206,-460.0,0.00019178,2]
[369986481,1751812240215,-460.0,0.00019178,2]
[369986483,1751812240225,-460.0,0.00019178,2]
[369986485,1751812240235,-460.0,0.00019178,2]
[369986487,1751812240244,-460.0,0.00019178,2]
[369986488,1751812240254,-268.46313109,0.00019178,2]
[369986490,1751812240263,-460.0,0.00019178,2]
[369986492,1751812240273,-460.0,0.00019178,2]
[369986494,1751812240282,-460.0,0.00019178,2]
[369986496,1751812240293,-460.0,0.00019178,2]
[369986498,1751812240303,-587.17,0.00019178,2]
[369986500,1751812240312,-460.0,0.00019178,2]
[369986502,1751812240321,-460.0,0.00019178,2]
[369986504,1751812240330,-460.0,0.00019178,2]
[369986506,1751812240340,-460.0,0.00019178,2]
[369986507,1751812240349,-460.0,0.00019178,2]
[369986509,1751812240358,-460.0,0.00019178,2]
[369986511,1751812240368,-460.0,0.00019178,2]
[369986513,1751812240377,-460.0,0.00019178,2]
[369986515,1751812240387,-460.0,0.00019178,2]
[369986517,1751812240396,-460.0,0.00019178,2]
[369986519,1751812240407,-460.0,0.00019178,2]
[369986520,1751812240416,-460.0,0.00019178,2]
[369986522,1751812240426,-460.0,0.00019178,2]
[369986524,1751812240442,-460.0,0.00019178,2]
[369986526,1751812240451,-460.0,0.00019178,2]
[369986528,1751812240460,-460.0,0.00019178,2]
[369986530,1751812240470,-460.0,0.00019178,2]
[369986532,1751812240480,-265.20175604,0.00019178,2]
[369986534,1751812240490,-460.0,0.00019178,2]
[369986535,1751812240499,-460.0,0.00019178,2]
[369986537,1751812240511,-460.0,0.00019178,2]
[369986539,1751812240521,-460.0,0.00019178,2]
[369986541,1751812240531,-460.0,0.00019178,2]
[369986543,1751812240541,-460.0,0.00019178,2]
[369986545,1751812240551,-460.0,0.00019178,2]
[369986547,1751812240561,-460.0,0.00019178,2]
[369986549,1751812240571,-460.0,0.00019178,2]
[369986551,1751812240580,-460.0,0.00019178,2]
[369986553,1751812240589,-466.19935372,0.00019178,2]
[369986555,1751812240599,-460.0,0.00019178,2]
[369986557,1751812240611,-460.0,0.00019178,2]
[369986558,1751812240621,-534.22,0.00019178,2]
[369986560,1751812240630,-460.0,0.00019178,2]
[369986562,1751812240640,-460.0,0.00019178,2]
[369986564,1751812240649,-460.0,0.00019178,2]
[369986566,1751812240659,-460.0,0.00019178,2]
[369986568,1751812240668,-460.0,0.00019178,2]
[369986569,1751812240677,-581.15,0.00019178,2]
[369986571,1751812240687,-460.0,0.00019178,2]
[369986573,1751812240696,-460.0,0.00019178,2]
[369986575,1751812240705,-460.0,0.00019178,2]
[369986577,1751812240714,-460.0,0.00019178,2]
[369986579,1751812240724,-460.0,0.00019178,2]
[369986581,1751812240733,-460.0,0.00019178,2]
[369986583,1751812240742,-460.0,0.00019178,2]
[369986585,1751812240752,-460.0,0.00019178,2]
[369986586,1751812240762,-460.0,0.00019178,2]
[369986587,1751812240771,-460.0,0.00019178,2]
[369986588,1751812240780,-460.0,0.00019178,2]
[369986589,1751812240789,-460.0,0.00019178,2]
[369986590,1751812240798,-460.0,0.00019178,2]
[369986591,1751812240808,-608.5338892,0.00019178,2]
[369986592,1751812240817,-460.0,0.00019178,2]
[369986593,1751812240826,-460.0,0.00019178,2]
[369986594,1751812240835,-460.0,0.00019178,2]
[369986595,1751812240845,-460.0,0.00019178,2]
[369986596,1751812240854,-460.0,0.00019178,2]
[369986597,1751812240863,-460.0,0.00019178,2]
[369986598,1751812240872,-460.0,0.00019178,2]
[369986599,1751812240882,-460.0,0.00019178,2]
[369986600,1751812240891,-460.0,0.00019178,2]
[369986601,1751812240900,-460.0,0.00019178,2]
[369986602,1751812240910,-460.0,0.00019178,2]
[369986603,1751812240919,-1171.66,0.00019178,2]